[Event "Titled Tuesday Blitz August 31 2021"]
[White "Abdurakhmonov, Mukhammadali"]
[Black "Martins, Igor Carvalho Ribeiro"]
[WhiteFideId "14207346"]
[BlackFideId "2162962"]
[WhiteElo "2266"]
[BlackElo "2432"]
[Result "1/2-1/2"]
[Round "01"]
[TimeControl "180+1"]
[Date "2021.08.31"]
[WhiteClock "0:00:07"]
[BlackClock "0:00:29"]

1. e4 {[%clk 0:03:00]}  c5 {[%clk 0:02:58]} 2. Nc3 {[%clk 0:03:00]}  d6 {[%clk 0:02:58]} 3. Nf3 {[%clk 0:03:00]}  Nf6 {[%clk 0:02:58]} 4. e5 {[%clk 0:03:00]}  dxe5 {[%clk 0:02:57]} 5. Nxe5 {[%clk 0:03:01]}  Nbd7 {[%clk 0:02:57]} 6. d4 {[%clk 0:03:01]}  cxd4 {[%clk 0:02:54]} 7. Qxd4 {[%clk 0:03:01]}  e6 {[%clk 0:02:53]} 8. Bb5 {[%clk 0:02:49]}  a6 {[%clk 0:02:52]} 9. Bxd7+ {[%clk 0:02:50]}  Nxd7 {[%clk 0:02:41]} 10. Bf4 {[%clk 0:02:44]}  Nxe5 {[%clk 0:02:33]} 11. Qxd8+ {[%clk 0:02:43]}  Kxd8 {[%clk 0:02:33]} 12. Bxe5 {[%clk 0:02:44]}  f6 {[%clk 0:02:30]} 13. O-O-O {[%clk 0:02:43]}  Ke8 {[%clk 0:02:30]} 14. Bd6 {[%clk 0:02:40]}  Bd7 {[%clk 0:02:26]} 15. Rhe1 {[%clk 0:02:31]}  Bxd6 {[%clk 0:02:23]} 16. Rxd6 {[%clk 0:02:32]}  Ke7 {[%clk 0:02:23]} 17. Rd2 {[%clk 0:02:09]}  Rad8 {[%clk 0:01:55]} 18. f4 {[%clk 0:01:33]}  Bc6 {[%clk 0:01:47]} 19. Rde2 {[%clk 0:01:31]}  Rd6 {[%clk 0:01:46]} 20. a4 {[%clk 0:01:26]}  Rhd8 {[%clk 0:01:42]} 21. a5 {[%clk 0:01:18]}  Kf7 {[%clk 0:01:40]} 22. g3 {[%clk 0:01:18]}  h5 {[%clk 0:01:39]} 23. Ne4 {[%clk 0:00:49]}  Bxe4 {[%clk 0:01:13]} 24. Rxe4 {[%clk 0:00:50]}  Rc8 {[%clk 0:01:08]} 25. R1e3 {[%clk 0:00:46]}  Rc5 {[%clk 0:01:03]} 26. b4 {[%clk 0:00:42]}  Rcd5 {[%clk 0:01:03]} 27. Rc3 {[%clk 0:00:40]}  Rd1+ {[%clk 0:00:58]} 28. Kb2 {[%clk 0:00:40]}  Rd7 {[%clk 0:00:59]} 29. Rec4 {[%clk 0:00:31]}  R1d2 {[%clk 0:00:56]} 30. h4 {[%clk 0:00:29]}  Ke7 {[%clk 0:00:56]} 31. Rc8 {[%clk 0:00:29]}  R2d4 {[%clk 0:00:52]} 32. Kb3 {[%clk 0:00:29]}  R4d5 {[%clk 0:00:50]} 33. Rb8 {[%clk 0:00:27]}  e5 {[%clk 0:00:48]} 34. fxe5 {[%clk 0:00:26]}  Rxe5 {[%clk 0:00:48]} 35. Rg8 {[%clk 0:00:21]}  Kf7 {[%clk 0:00:48]} 36. Rgc8 {[%clk 0:00:22]}  Kg6 {[%clk 0:00:47]} 37. R8c7 {[%clk 0:00:19]}  Ree7 {[%clk 0:00:47]} 38. Rxd7 {[%clk 0:00:18]}  Rxd7 {[%clk 0:00:47]} 39. Rc5 {[%clk 0:00:19]}  Kh6 {[%clk 0:00:47]} 40. b5 {[%clk 0:00:15]}  axb5 {[%clk 0:00:46]} 41. Kb4 {[%clk 0:00:15]}  g5 {[%clk 0:00:47]} 42. Kxb5 {[%clk 0:00:15]}  Kg6 {[%clk 0:00:46]} 43. Kb6 {[%clk 0:00:13]}  gxh4 {[%clk 0:00:46]} 44. gxh4 {[%clk 0:00:14]}  f5 {[%clk 0:00:46]} 45. Rc4 {[%clk 0:00:06]}  Kf6 {[%clk 0:00:46]} 46. Rb4 {[%clk 0:00:05]}  Ke5 {[%clk 0:00:46]} 47. c4 {[%clk 0:00:04]}  f4 {[%clk 0:00:46]} 48. Rb5+ {[%clk 0:00:03]}  Ke4 {[%clk 0:00:46]} 49. Rxh5 {[%clk 0:00:04]}  f3 {[%clk 0:00:46]} 50. Rh6 {[%clk 0:00:04]}  Rf7 {[%clk 0:00:46]} 51. Re6+ {[%clk 0:00:05]}  Kd4 {[%clk 0:00:46]} 52. Re1 {[%clk 0:00:05]}  Kxc4 {[%clk 0:00:46]} 53. h5 {[%clk 0:00:05]}  Kd3 {[%clk 0:00:45]} 54. h6 {[%clk 0:00:03]}  f2 {[%clk 0:00:45]} 55. Rh1 {[%clk 0:00:03]}  Ke2 {[%clk 0:00:45]} 56. h7 {[%clk 0:00:03]}  Rxh7 {[%clk 0:00:45]} 57. Rxh7 {[%clk 0:00:04]}  f1=Q {[%clk 0:00:45]} 58. Rxb7 {[%clk 0:00:04]}  Qb1+ {[%clk 0:00:45]} 59. Ka7 {[%clk 0:00:04]}  Qf5 {[%clk 0:00:43]} 60. a6 {[%clk 0:00:04]}  Qc5+ {[%clk 0:00:43]} 61. Ka8 {[%clk 0:00:03]}  Qc8+ {[%clk 0:00:43]} 62. Ka7 {[%clk 0:00:03]}  Kd3 {[%clk 0:00:43]} 63. Kb6 {[%clk 0:00:04]}  Qd8+ {[%clk 0:00:41]} 64. Kb5 {[%clk 0:00:04]}  Qd5+ {[%clk 0:00:38]} 65. Kb6 {[%clk 0:00:05]}  Qd4+ {[%clk 0:00:38]} 66. Kb5 {[%clk 0:00:05]}  Qc4+ {[%clk 0:00:38]} 67. Kb6 {[%clk 0:00:06]}  Qb4+ {[%clk 0:00:37]} 68. Kc6 {[%clk 0:00:06]}  Qc4+ {[%clk 0:00:34]} 69. Kb6 {[%clk 0:00:06]}  Kd4 {[%clk 0:00:31]} 70. Rd7+ {[%clk 0:00:06]}  Ke5 {[%clk 0:00:31]} 71. a7 {[%clk 0:00:06]}  Qb4+ {[%clk 0:00:30]} 72. Kc6 {[%clk 0:00:06]}  Qa4+ {[%clk 0:00:30]} 73. Kb6 {[%clk 0:00:07]}  Qxd7 {[%clk 0:00:29]} 74. a8=Q {[%clk 0:00:07]}  Qd6+ {[%clk 0:00:29]} 75. Qc6 {[%clk 0:00:06]}  Qxc6+ {[%clk 0:00:29]} 76. Kxc6 {[%clk 0:00:07]} 1/2-1/2


[Site "https://www.chess.com"]

[Event "Titled Tuesday Blitz August 31 2021"]
[White "Abdusattorov, Nodirbek"]
[Black "Atanasov, Anthony"]
[WhiteFideId "14204118"]
[BlackFideId "2623897"]
[WhiteElo "2662"]
[BlackElo "1889"]
[Result "1-0"]
[Round "01"]
[TimeControl "180+1"]
[Date "2021.08.31"]
[WhiteClock "0:01:23"]
[BlackClock "0:00:17"]

1. e4 {[%clk 0:03:00]}  c5 {[%clk 0:02:57]} 2. Nf3 {[%clk 0:03:00]}  d6 {[%clk 0:02:53]} 3. d4 {[%clk 0:02:58]}  cxd4 {[%clk 0:02:54]} 4. Nxd4 {[%clk 0:02:59]}  Nf6 {[%clk 0:02:55]} 5. Nc3 {[%clk 0:03:00]}  a6 {[%clk 0:02:55]} 6. Be3 {[%clk 0:02:57]}  e6 {[%clk 0:02:55]} 7. g4 {[%clk 0:02:56]}  h6 {[%clk 0:02:55]} 8. Rg1 {[%clk 0:02:55]}  Nbd7 {[%clk 0:02:54]} 9. h4 {[%clk 0:02:52]}  g6 {[%clk 0:02:42]} 10. f4 {[%clk 0:02:49]}  h5 {[%clk 0:02:41]} 11. g5 {[%clk 0:02:42]}  Ng4 {[%clk 0:02:40]} 12. Qd2 {[%clk 0:02:29]}  Bg7 {[%clk 0:02:34]} 13. O-O-O {[%clk 0:02:29]}  b5 {[%clk 0:02:14]} 14. f5 {[%clk 0:02:27]}  b4 {[%clk 0:01:58]} 15. Na4 {[%clk 0:02:14]}  Qa5 {[%clk 0:01:53]} 16. fxe6 {[%clk 0:02:08]}  Qxa4 {[%clk 0:01:51]} 17. exd7+ {[%clk 0:02:09]}  Bxd7 {[%clk 0:01:50]} 18. Bc4 {[%clk 0:02:10]}  Be6 {[%clk 0:01:32]} 19. Nxe6 {[%clk 0:02:06]}  Bxb2+ {[%clk 0:01:26]} 20. Kxb2 {[%clk 0:02:04]}  Qa3+ {[%clk 0:01:27]} 21. Kb1 {[%clk 0:02:04]}  Nxe3 {[%clk 0:01:27]} 22. Qxd6 {[%clk 0:01:59]}  Qb2+ {[%clk 0:01:16]} 23. Kxb2 {[%clk 0:01:55]}  Nxc4+ {[%clk 0:01:17]} 24. Kb3 {[%clk 0:01:54]}  Nxd6 {[%clk 0:01:18]} 25. Nc7+ {[%clk 0:01:52]}  Ke7 {[%clk 0:01:18]} 26. Nxa8 {[%clk 0:01:53]}  Rxa8 {[%clk 0:01:16]} 27. Rd5 {[%clk 0:01:35]}  a5 {[%clk 0:01:06]} 28. Rgd1 {[%clk 0:01:35]}  Ra6 {[%clk 0:00:55]} 29. Ka4 {[%clk 0:01:23]}  Ke6 {[%clk 0:00:31]} 30. Rxd6+ {[%clk 0:01:23]}  Rxd6 {[%clk 0:00:31]} 31. Rxd6+ {[%clk 0:01:24]}  Kxd6 {[%clk 0:00:32]} 32. Kxa5 {[%clk 0:01:25]}  Kc5 {[%clk 0:00:32]} 33. e5 {[%clk 0:01:18]}  Kc4 {[%clk 0:00:16]} 34. Ka4 {[%clk 0:01:16]}  Kd5 {[%clk 0:00:17]} 35. Kxb4 {[%clk 0:01:15]}  Kxe5 {[%clk 0:00:17]} 36. a4 {[%clk 0:01:16]}  f5 {[%clk 0:00:16]} 37. gxf6 {[%clk 0:01:17]}  Kxf6 {[%clk 0:00:13]} 38. a5 {[%clk 0:01:18]}  g5 {[%clk 0:00:13]} 39. hxg5+ {[%clk 0:01:19]}  Kxg5 {[%clk 0:00:13]} 40. a6 {[%clk 0:01:20]}  Kg4 {[%clk 0:00:14]} 41. a7 {[%clk 0:01:20]}  h4 {[%clk 0:00:15]} 42. a8=Q {[%clk 0:01:21]}  Kg3 {[%clk 0:00:15]} 43. c4 {[%clk 0:01:21]}  h3 {[%clk 0:00:16]} 44. c5 {[%clk 0:01:22]}  h2 {[%clk 0:00:17]} 45. Qh1 {[%clk 0:01:23]} 1-0


[Site "https://www.chess.com"]

[Event "Titled Tuesday Blitz August 31 2021"]
[White "Bacrot, Etienne"]
[Black "Gubanov, Oleg"]
[WhiteFideId "605506"]
[BlackFideId "14115115"]
[WhiteElo "2673"]
[BlackElo "2138"]
[Result "1-0"]
[Round "01"]
[TimeControl "180+1"]
[Date "2021.08.31"]
[WhiteClock "0:00:14"]
[BlackClock "0:00:01"]

1. e4 {[%clk 0:03:00]}  Nf6 {[%clk 0:02:59]} 2. Nc3 {[%clk 0:02:58]}  d5 {[%clk 0:02:58]} 3. exd5 {[%clk 0:02:57]}  Nxd5 {[%clk 0:02:58]} 4. Nf3 {[%clk 0:02:57]}  Nxc3 {[%clk 0:02:56]} 5. bxc3 {[%clk 0:02:57]}  e6 {[%clk 0:02:46]} 6. h4 {[%clk 0:02:55]}  b6 {[%clk 0:02:45]} 7. h5 {[%clk 0:02:53]}  h6 {[%clk 0:02:36]} 8. d4 {[%clk 0:02:52]}  Bb7 {[%clk 0:02:36]} 9. Bb5+ {[%clk 0:02:51]}  c6 {[%clk 0:02:31]} 10. Bd3 {[%clk 0:02:51]}  Nd7 {[%clk 0:02:31]} 11. Bf4 {[%clk 0:02:49]}  Nf6 {[%clk 0:02:27]} 12. Qe2 {[%clk 0:02:42]}  Bd6 {[%clk 0:02:26]} 13. Ne5 {[%clk 0:02:41]}  Nd5 {[%clk 0:02:21]} 14. Bd2 {[%clk 0:02:35]}  Qc7 {[%clk 0:02:14]} 15. Rb1 {[%clk 0:02:14]}  Bxe5 {[%clk 0:02:05]} 16. dxe5 {[%clk 0:02:13]}  c5 {[%clk 0:01:49]} 17. a4 {[%clk 0:02:03]}  Ne7 {[%clk 0:01:47]} 18. Rh3 {[%clk 0:01:54]}  Rc8 {[%clk 0:01:12]} 19. Rh4 {[%clk 0:01:26]}  Nf5 {[%clk 0:00:59]} 20. Rg4 {[%clk 0:01:10]}  Kf8 {[%clk 0:00:55]} 21. a5 {[%clk 0:01:08]}  Bd5 {[%clk 0:00:51]} 22. axb6 {[%clk 0:00:53]}  axb6 {[%clk 0:00:52]} 23. Rf4 {[%clk 0:00:50]}  c4 {[%clk 0:00:33]} 24. Bxf5 {[%clk 0:00:45]}  exf5 {[%clk 0:00:34]} 25. Rxf5 {[%clk 0:00:44]}  Be6 {[%clk 0:00:33]} 26. Rf4 {[%clk 0:00:43]}  Rd8 {[%clk 0:00:27]} 27. Rd4 {[%clk 0:00:35]}  Ke7 {[%clk 0:00:19]} 28. Be3 {[%clk 0:00:23]}  Rxd4 {[%clk 0:00:18]} 29. Bxd4 {[%clk 0:00:23]}  Rb8 {[%clk 0:00:12]} 30. g4 {[%clk 0:00:20]}  b5 {[%clk 0:00:10]} 31. f4 {[%clk 0:00:19]}  Qc6 {[%clk 0:00:09]} 32. Kf2 {[%clk 0:00:18]}  Bd5 {[%clk 0:00:07]} 33. Kg3 {[%clk 0:00:17]}  Be4 {[%clk 0:00:06]} 34. Re1 {[%clk 0:00:17]}  Bd5 {[%clk 0:00:06]} 35. f5 {[%clk 0:00:17]}  Kf8 {[%clk 0:00:06]} 36. Qe3 {[%clk 0:00:16]}  Kg8 {[%clk 0:00:05]} 37. e6 {[%clk 0:00:15]}  Re8 {[%clk 0:00:02]} 38. Qe5 {[%clk 0:00:14]}  f6 {[%clk 0:00:01]} 39. Qe3 {[%clk 0:00:14]} 1-0


[Site "https://www.chess.com"]

[Event "Titled Tuesday Blitz August 31 2021"]
[White "Brunner, Nicolas"]
[Black "Tanenbaum, Zachary"]
[WhiteFideId "620246"]
[BlackFideId "2060850"]
[WhiteElo "2372"]
[BlackElo "2165"]
[Result "0-1"]
[Round "01"]
[TimeControl "180+1"]
[Date "2021.08.31"]
[WhiteClock "0:02:13"]
[BlackClock "0:02:22"]

1. d4 {[%clk 0:02:58]}  d5 {[%clk 0:02:59]} 2. c4 {[%clk 0:02:58]}  dxc4 {[%clk 0:03:00]} 3. e4 {[%clk 0:02:57]}  c5 {[%clk 0:03:00]} 4. d5 {[%clk 0:02:56]}  e6 {[%clk 0:03:00]} 5. Bxc4 {[%clk 0:02:56]}  Nf6 {[%clk 0:03:00]} 6. Nc3 {[%clk 0:02:55]}  exd5 {[%clk 0:03:00]} 7. exd5 {[%clk 0:02:55]}  a6 {[%clk 0:02:59]} 8. a4 {[%clk 0:02:54]}  Bd6 {[%clk 0:02:59]} 9. Nf3 {[%clk 0:02:54]}  O-O {[%clk 0:02:59]} 10. O-O {[%clk 0:02:54]}  Bg4 {[%clk 0:02:59]} 11. h3 {[%clk 0:02:54]}  Bh5 {[%clk 0:02:59]} 12. Re1 {[%clk 0:02:54]}  Re8 {[%clk 0:02:55]} 13. Rxe8+ {[%clk 0:02:49]}  Qxe8 {[%clk 0:02:56]} 14. Bg5 {[%clk 0:02:49]}  Nbd7 {[%clk 0:02:55]} 15. g4 {[%clk 0:02:45]}  Bg6 {[%clk 0:02:54]} 16. Kg2 {[%clk 0:02:43]}  h6 {[%clk 0:02:54]} 17. Be3 {[%clk 0:02:41]}  Ne5 {[%clk 0:02:47]} 18. Nxe5 {[%clk 0:02:28]}  Qxe5 {[%clk 0:02:48]} 19. Qf3 {[%clk 0:02:27]}  Ne4 {[%clk 0:02:46]} 20. Bd3 {[%clk 0:02:17]}  Qh2+ {[%clk 0:02:25]} 21. Kf1 {[%clk 0:02:17]}  Ng3+ {[%clk 0:02:26]} 22. fxg3 {[%clk 0:02:14]}  Bxd3+ {[%clk 0:02:26]} 23. Ke1 {[%clk 0:02:13]}  Bxg3+ {[%clk 0:02:22]} 24. Kd1 {[%clk 0:02:13]}  Qc2# {[%clk 0:02:22]} 0-1


[Site "https://www.chess.com"]

[Event "Titled Tuesday Blitz August 31 2021"]
[White "Chen, Max"]
[Black "Maghsoodloo, Parham"]
[WhiteFideId "2622440"]
[BlackFideId "12539929"]
[WhiteElo "2456"]
[BlackElo "2601"]
[Result "0-1"]
[Round "01"]
[TimeControl "180+1"]
[Date "2021.08.31"]
[WhiteClock "0:00:45"]
[BlackClock "0:00:58"]

1. e4 {[%clk 0:03:00]}  c5 {[%clk 0:02:58]} 2. c3 {[%clk 0:02:58]}  d5 {[%clk 0:02:54]} 3. exd5 {[%clk 0:02:58]}  Qxd5 {[%clk 0:02:53]} 4. d4 {[%clk 0:02:58]}  g6 {[%clk 0:02:53]} 5. Nf3 {[%clk 0:02:51]}  Nc6 {[%clk 0:02:49]} 6. Na3 {[%clk 0:02:47]}  cxd4 {[%clk 0:02:46]} 7. Bc4 {[%clk 0:02:43]}  Qe4+ {[%clk 0:02:16]} 8. Be3 {[%clk 0:02:43]}  Bh6 {[%clk 0:01:57]} 9. Nb5 {[%clk 0:01:39]}  dxe3 {[%clk 0:01:56]} 10. Bd5 {[%clk 0:01:36]}  exf2+ {[%clk 0:01:52]} 11. Kxf2 {[%clk 0:01:28]}  Qe3+ {[%clk 0:01:52]} 12. Kf1 {[%clk 0:01:29]}  Nf6 {[%clk 0:01:30]} 13. Nc7+ {[%clk 0:01:22]}  Kf8 {[%clk 0:01:30]} 14. Nxa8 {[%clk 0:01:21]}  Bf5 {[%clk 0:01:29]} 15. Bc4 {[%clk 0:01:11]}  Ng4 {[%clk 0:00:59]} 16. Qe2 {[%clk 0:01:07]}  Qc5 {[%clk 0:00:59]} 17. Bd3 {[%clk 0:00:45]}  Bxd3 {[%clk 0:00:58]} 0-1


[Site "https://www.chess.com"]

[Event "Titled Tuesday Blitz August 31 2021"]
[White "Costachi, Mihnea"]
[Black "Dudzinski, Pawel"]
[WhiteFideId "1217518"]
[BlackFideId "1117890"]
[WhiteElo "2482"]
[BlackElo "2193"]
[Result "1-0"]
[Round "01"]
[TimeControl "180+1"]
[Date "2021.08.31"]
[WhiteClock "0:01:46"]
[BlackClock "0:00:03"]

1. e4 {[%clk 0:03:00]}  c6 {[%clk 0:02:58]} 2. d4 {[%clk 0:02:59]}  d5 {[%clk 0:02:59]} 3. exd5 {[%clk 0:02:55]}  cxd5 {[%clk 0:03:00]} 4. Nf3 {[%clk 0:02:54]}  Nf6 {[%clk 0:03:00]} 5. Be2 {[%clk 0:02:52]}  g6 {[%clk 0:02:59]} 6. O-O {[%clk 0:02:53]}  Bg7 {[%clk 0:02:59]} 7. c3 {[%clk 0:02:54]}  O-O {[%clk 0:02:58]} 8. Bf4 {[%clk 0:02:55]}  Nc6 {[%clk 0:02:56]} 9. h3 {[%clk 0:02:55]}  Bf5 {[%clk 0:02:50]} 10. Nbd2 {[%clk 0:02:55]}  Ne4 {[%clk 0:02:48]} 11. Nxe4 {[%clk 0:02:54]}  Bxe4 {[%clk 0:02:48]} 12. Qb3 {[%clk 0:02:52]}  Na5 {[%clk 0:02:41]} 13. Qb4 {[%clk 0:02:50]}  b6 {[%clk 0:01:59]} 14. Nd2 {[%clk 0:02:48]}  Bf5 {[%clk 0:01:54]} 15. Bf3 {[%clk 0:02:48]}  Nc6 {[%clk 0:01:51]} 16. Qb5 {[%clk 0:02:46]}  e5 {[%clk 0:00:59]} 17. Qxc6 {[%clk 0:02:37]}  exf4 {[%clk 0:00:58]} 18. Qxd5 {[%clk 0:02:37]}  Qxd5 {[%clk 0:00:45]} 19. Bxd5 {[%clk 0:02:37]}  Rad8 {[%clk 0:00:46]} 20. Be4 {[%clk 0:02:36]}  Be6 {[%clk 0:00:44]} 21. Rfe1 {[%clk 0:02:36]}  g5 {[%clk 0:00:43]} 22. a4 {[%clk 0:02:36]}  a5 {[%clk 0:00:42]} 23. Bd3 {[%clk 0:02:36]}  Rfe8 {[%clk 0:00:38]} 24. Bb5 {[%clk 0:02:35]}  Re7 {[%clk 0:00:35]} 25. Nf3 {[%clk 0:02:36]}  h6 {[%clk 0:00:34]} 26. c4 {[%clk 0:02:36]}  Rc7 {[%clk 0:00:23]} 27. d5 {[%clk 0:02:36]}  Bf5 {[%clk 0:00:23]} 28. Ra2 {[%clk 0:02:31]}  Bd3 {[%clk 0:00:20]} 29. b3 {[%clk 0:02:31]}  Bc3 {[%clk 0:00:17]} 30. Re8+ {[%clk 0:02:25]}  Rxe8 {[%clk 0:00:16]} 31. Bxe8 {[%clk 0:02:26]}  Re7 {[%clk 0:00:17]} 32. Bb5 {[%clk 0:02:21]}  f5 {[%clk 0:00:16]} 33. d6 {[%clk 0:02:20]}  Re6 {[%clk 0:00:16]} 34. d7 {[%clk 0:02:15]}  Rd6 {[%clk 0:00:17]} 35. g3 {[%clk 0:02:02]}  fxg3 {[%clk 0:00:15]} 36. fxg3 {[%clk 0:02:03]}  g4 {[%clk 0:00:15]} 37. hxg4 {[%clk 0:02:03]}  fxg4 {[%clk 0:00:16]} 38. Nh4 {[%clk 0:02:03]}  Bd4+ {[%clk 0:00:15]} 39. Kh2 {[%clk 0:02:04]}  Bf6 {[%clk 0:00:12]} 40. Rf2 {[%clk 0:01:59]}  Bxh4 {[%clk 0:00:10]} 41. gxh4 {[%clk 0:02:00]}  h5 {[%clk 0:00:09]} 42. Kg3 {[%clk 0:02:00]}  Bg6 {[%clk 0:00:08]} 43. Rf6 {[%clk 0:01:58]}  Rd3+ {[%clk 0:00:07]} 44. Kf4 {[%clk 0:01:59]}  Kg7 {[%clk 0:00:07]} 45. Kg5 {[%clk 0:01:59]}  Bf7 {[%clk 0:00:05]} 46. Rf1 {[%clk 0:01:54]}  g3 {[%clk 0:00:05]} 47. Kf4 {[%clk 0:01:51]}  Be6 {[%clk 0:00:05]} 48. Ke4 {[%clk 0:01:48]}  Rd2 {[%clk 0:00:03]} 49. Rg1 {[%clk 0:01:46]}  g2 {[%clk 0:00:03]} 50. Ke3 {[%clk 0:01:46]} 1-0


[Site "https://www.chess.com"]

[Event "Titled Tuesday Blitz August 31 2021"]
[White "Eljanov, Pavel"]
[Black "Van der Werf, Mark"]
[WhiteFideId "14102951"]
[BlackFideId "1000470"]
[WhiteElo "2602"]
[BlackElo "2398"]
[Result "1-0"]
[Round "01"]
[TimeControl "180+1"]
[Date "2021.08.31"]
[WhiteClock "0:01:03"]
[BlackClock "0:00:41"]

1. c4 {[%clk 0:03:00]}  e6 {[%clk 0:02:57]} 2. d4 {[%clk 0:02:58]}  d5 {[%clk 0:02:56]} 3. Nc3 {[%clk 0:02:57]}  c6 {[%clk 0:02:54]} 4. e3 {[%clk 0:02:55]}  Bd6 {[%clk 0:02:50]} 5. Nf3 {[%clk 0:02:51]}  f5 {[%clk 0:02:47]} 6. Ne5 {[%clk 0:02:47]}  Nf6 {[%clk 0:02:45]} 7. Bd3 {[%clk 0:02:47]}  O-O {[%clk 0:02:44]} 8. O-O {[%clk 0:02:48]}  Bxe5 {[%clk 0:02:40]} 9. dxe5 {[%clk 0:02:47]}  Ng4 {[%clk 0:02:40]} 10. f4 {[%clk 0:02:47]}  d4 {[%clk 0:02:40]} 11. Ne2 {[%clk 0:02:29]}  Nxe3 {[%clk 0:02:38]} 12. Bxe3 {[%clk 0:02:29]}  dxe3 {[%clk 0:02:37]} 13. c5 {[%clk 0:02:20]}  b6 {[%clk 0:02:31]} 14. Bc4 {[%clk 0:02:18]}  Ba6 {[%clk 0:02:16]} 15. Bxe6+ {[%clk 0:02:16]}  Kh8 {[%clk 0:02:16]} 16. Qxd8 {[%clk 0:02:08]}  Rxd8 {[%clk 0:02:15]} 17. Rfd1 {[%clk 0:02:07]}  Rf8 {[%clk 0:02:03]} 18. Nd4 {[%clk 0:01:55]}  bxc5 {[%clk 0:01:55]} 19. Nxf5 {[%clk 0:01:55]}  e2 {[%clk 0:01:52]} 20. Re1 {[%clk 0:01:55]}  Bd3 {[%clk 0:01:48]} 21. Ng3 {[%clk 0:01:54]}  Rxf4 {[%clk 0:01:43]} 22. Nxe2 {[%clk 0:01:54]}  Bxe2 {[%clk 0:01:38]} 23. Rxe2 {[%clk 0:01:54]}  Na6 {[%clk 0:01:38]} 24. Bd7 {[%clk 0:01:54]}  Rf7 {[%clk 0:01:33]} 25. Bxc6 {[%clk 0:01:52]}  Rc8 {[%clk 0:01:28]} 26. Bd5 {[%clk 0:01:52]}  Re7 {[%clk 0:01:27]} 27. a3 {[%clk 0:01:48]}  Nc7 {[%clk 0:01:27]} 28. Bc4 {[%clk 0:01:48]}  Ne6 {[%clk 0:01:26]} 29. Rf1 {[%clk 0:01:41]}  g6 {[%clk 0:01:21]} 30. Rf6 {[%clk 0:01:33]}  Nd4 {[%clk 0:01:20]} 31. Re4 {[%clk 0:01:34]}  Kg7 {[%clk 0:01:18]} 32. Ra6 {[%clk 0:01:32]}  Rce8 {[%clk 0:01:14]} 33. h4 {[%clk 0:01:29]}  Rxe5 {[%clk 0:01:13]} 34. Rxa7+ {[%clk 0:01:29]}  Kh6 {[%clk 0:01:12]} 35. Rxe5 {[%clk 0:01:28]}  Rxe5 {[%clk 0:01:11]} 36. Kh2 {[%clk 0:01:25]}  g5 {[%clk 0:01:06]} 37. hxg5+ {[%clk 0:01:23]}  Rxg5 {[%clk 0:01:04]} 38. Bd3 {[%clk 0:01:22]}  Rg7 {[%clk 0:01:03]} 39. Rxg7 {[%clk 0:01:22]}  Kxg7 {[%clk 0:01:03]} 40. a4 {[%clk 0:01:22]}  Nb3 {[%clk 0:01:02]} 41. Bc4 {[%clk 0:01:21]}  Na5 {[%clk 0:01:02]} 42. Bd5 {[%clk 0:01:21]}  Kf6 {[%clk 0:01:02]} 43. Kg3 {[%clk 0:01:22]}  Ke5 {[%clk 0:01:02]} 44. Bg8 {[%clk 0:01:22]}  h6 {[%clk 0:01:02]} 45. Kh4 {[%clk 0:01:22]}  Kd4 {[%clk 0:00:54]} 46. Kh5 {[%clk 0:01:22]}  Kd3 {[%clk 0:00:52]} 47. Kxh6 {[%clk 0:01:23]}  Kc2 {[%clk 0:00:52]} 48. g4 {[%clk 0:01:13]}  Kxb2 {[%clk 0:00:51]} 49. g5 {[%clk 0:01:14]}  Nc6 {[%clk 0:00:49]} 50. g6 {[%clk 0:01:12]}  Ka3 {[%clk 0:00:49]} 51. g7 {[%clk 0:01:06]}  Kb4 {[%clk 0:00:46]} 52. Bh7 {[%clk 0:01:02]}  Ne7 {[%clk 0:00:44]} 53. Kg5 {[%clk 0:01:02]}  Kxa4 {[%clk 0:00:41]} 54. Kf6 {[%clk 0:01:02]}  Nd5+ {[%clk 0:00:41]} 55. Kf7 {[%clk 0:01:03]} 1-0


[Site "https://www.chess.com"]

[Event "Titled Tuesday Blitz August 31 2021"]
[White "Federzoni, Enzo"]
[Black "Molina, Roberto Junio Brito"]
[WhiteFideId "2173301"]
[BlackFideId "2109450"]
[WhiteElo "1956"]
[BlackElo "2402"]
[Result "1-0"]
[Round "01"]
[TimeControl "180+1"]
[Date "2021.08.31"]
[WhiteClock "0:00:17"]
[BlackClock "0:00:06"]

1. c4 {[%clk 0:03:00]}  c6 {[%clk 0:02:58]} 2. d4 {[%clk 0:02:57]}  d5 {[%clk 0:02:59]} 3. cxd5 {[%clk 0:02:58]}  cxd5 {[%clk 0:02:55]} 4. Nf3 {[%clk 0:02:59]}  Nc6 {[%clk 0:02:51]} 5. Nc3 {[%clk 0:02:58]}  Nf6 {[%clk 0:02:48]} 6. e3 {[%clk 0:02:58]}  Bf5 {[%clk 0:02:46]} 7. Qb3 {[%clk 0:02:54]}  Na5 {[%clk 0:02:43]} 8. Bb5+ {[%clk 0:02:38]}  Bd7 {[%clk 0:02:42]} 9. Qa4 {[%clk 0:02:32]}  Nc6 {[%clk 0:02:36]} 10. Ne5 {[%clk 0:02:29]}  Qc7 {[%clk 0:02:22]} 11. Bd2 {[%clk 0:02:13]}  Nxe5 {[%clk 0:01:46]} 12. dxe5 {[%clk 0:02:14]}  Qxe5 {[%clk 0:01:45]} 13. Bxd7+ {[%clk 0:02:14]}  Nxd7 {[%clk 0:01:45]} 14. Nb5 {[%clk 0:02:11]}  Rc8 {[%clk 0:01:15]} 15. Bc3 {[%clk 0:02:10]}  Qe4 {[%clk 0:01:11]} 16. Qxa7 {[%clk 0:01:57]}  d4 {[%clk 0:00:57]} 17. Qxd4 {[%clk 0:01:54]}  Qxg2 {[%clk 0:00:40]} 18. O-O-O {[%clk 0:01:53]}  Qh3 {[%clk 0:00:23]} 19. Qf4 {[%clk 0:01:23]}  e5 {[%clk 0:00:20]} 20. Qa4 {[%clk 0:01:15]}  Qe6 {[%clk 0:00:19]} 21. Kb1 {[%clk 0:01:11]}  Bc5 {[%clk 0:00:19]} 22. f4 {[%clk 0:00:57]}  O-O {[%clk 0:00:17]} 23. fxe5 {[%clk 0:00:48]}  Nxe5 {[%clk 0:00:18]} 24. Rhg1 {[%clk 0:00:41]}  f6 {[%clk 0:00:17]} 25. Nd4 {[%clk 0:00:38]}  Bxd4 {[%clk 0:00:17]} 26. exd4 {[%clk 0:00:31]}  Ra8 {[%clk 0:00:16]} 27. Qb3 {[%clk 0:00:30]}  Qxb3 {[%clk 0:00:16]} 28. axb3 {[%clk 0:00:31]}  Nd7 {[%clk 0:00:15]} 29. Rge1 {[%clk 0:00:28]}  Kf7 {[%clk 0:00:15]} 30. Bb4 {[%clk 0:00:28]}  Rfe8 {[%clk 0:00:16]} 31. Rc1 {[%clk 0:00:29]}  Rxe1 {[%clk 0:00:14]} 32. Bxe1 {[%clk 0:00:29]}  Re8 {[%clk 0:00:11]} 33. Bg3 {[%clk 0:00:28]}  Nb6 {[%clk 0:00:10]} 34. Bd6 {[%clk 0:00:26]}  Rd8 {[%clk 0:00:10]} 35. Bc7 {[%clk 0:00:22]}  Rxd4 {[%clk 0:00:07]} 36. Bxb6 {[%clk 0:00:21]}  Rb4 {[%clk 0:00:08]} 37. Rc7+ {[%clk 0:00:19]}  Kg6 {[%clk 0:00:08]} 38. Rxb7 {[%clk 0:00:20]}  Rxb3 {[%clk 0:00:09]} 39. Kc2 {[%clk 0:00:20]}  Rh3 {[%clk 0:00:08]} 40. Bc7 {[%clk 0:00:20]}  Kf5 {[%clk 0:00:07]} 41. Bg3 {[%clk 0:00:19]}  g5 {[%clk 0:00:08]} 42. b4 {[%clk 0:00:20]}  h5 {[%clk 0:00:08]} 43. b5 {[%clk 0:00:20]}  h4 {[%clk 0:00:09]} 44. Bd6 {[%clk 0:00:20]}  Ke6 {[%clk 0:00:09]} 45. Be7 {[%clk 0:00:19]}  Rxh2+ {[%clk 0:00:09]} 46. Kd3 {[%clk 0:00:19]}  Rh1 {[%clk 0:00:09]} 47. b6 {[%clk 0:00:19]}  Rb1 {[%clk 0:00:08]} 48. Bd8 {[%clk 0:00:20]}  h3 {[%clk 0:00:09]} 49. Bc7 {[%clk 0:00:19]}  Rb2 {[%clk 0:00:07]} 50. Rb8 {[%clk 0:00:19]}  h2 {[%clk 0:00:07]} 51. Rh8 {[%clk 0:00:19]}  g4 {[%clk 0:00:05]} 52. Rxh2 {[%clk 0:00:19]}  Rb3+ {[%clk 0:00:06]} 53. Kc4 {[%clk 0:00:19]}  Rb1 {[%clk 0:00:06]} 54. Kc3 {[%clk 0:00:18]}  f5 {[%clk 0:00:06]} 55. Rb2 {[%clk 0:00:19]}  Rc1+ {[%clk 0:00:05]} 56. Kd2 {[%clk 0:00:18]}  Rc5 {[%clk 0:00:05]} 57. b7 {[%clk 0:00:17]}  Rd5+ {[%clk 0:00:06]} 58. Ke2 {[%clk 0:00:17]} 1-0


[Site "https://www.chess.com"]